[Event "World Women Teams  Championship"]
[Site "Sitges, Spain"]
[Date "2021.09.27"]
[Round "2.11"]
[White "Kulon, Klaudia"]
[Black "Klek, Hanna Marie"]
[Result "1-0"]
[TimeControl "40+10"]
[WhiteElo "2234"]
[BlackElo "2331"]

1. e4 {[%clk 00:45:18]} c5 {[%clk 00:45:18]} {[%emt 00:00:02]} 2. Nf3 {[%clk
00:45:26]} {[%emt 00:00:02]} d6 {[%clk 00:45:26]} {[%emt 00:00:01]} 3. d4
{[%clk 00:45:35]} {[%emt 00:00:02]} cxd4 {[%clk 00:45:35]} {[%emt 00:00:02]} 4.
Nxd4 {[%clk 00:45:43]} {[%emt 00:00:01]} Nf6 {[%clk 00:45:43]} 5. Nc3 {[%clk
00:45:49]} {[%emt 00:00:04]} a6 {[%clk 00:45:52]} {[%emt 00:00:01]} 6. Be2
{[%clk 00:45:52]} {[%emt 00:00:07]} g6 {[%clk 00:45:56]} {[%emt 00:00:06]} 7.
O-O {[%clk 00:45:22]} {[%emt 00:00:39]} Bg7 {[%clk 00:45:56]} {[%emt 00:00:10]}
8. Re1 {[%clk 00:44:33]} {[%emt 00:00:59]} O-O {[%clk 00:45:51]} {[%emt
00:00:14]} 9. Bf1 {[%clk 00:43:20]} {[%emt 00:01:24]} b5 {[%clk 00:44:13]}
{[%emt 00:01:48]} 10. Bg5 {[%clk 00:40:36]} {[%emt 00:02:53]} Bb7 {[%clk
00:44:09]} {[%emt 00:00:14]} 11. a4 {[%clk 00:35:50]} {[%emt 00:04:56]} b4
{[%clk 00:42:19]} {[%emt 00:02:01]} 12. Nd5 {[%clk 00:35:57]} {[%emt 00:00:03]}
Nbd7 {[%clk 00:41:13]} {[%emt 00:01:16]} 13. Nxb4 {[%clk 00:31:13]} {[%emt
00:04:54]} Qb6 {[%clk 00:40:34]} {[%emt 00:00:48]} 14. c3 {[%clk 00:30:51]}
{[%emt 00:00:33]} e5 {[%clk 00:35:35]} {[%emt 00:05:08]} 15. a5 {[%clk
00:29:31]} {[%emt 00:01:31]} Qc7 {[%clk 00:34:25]} {[%emt 00:01:19]} 16. Ndc2
{[%clk 00:26:05]} {[%emt 00:03:37]} Nxe4 {[%clk 00:32:28]} {[%emt 00:02:07]} 17.
Bh4 {[%clk 00:25:05]} {[%emt 00:01:10]} Ndc5 {[%clk 00:30:02]} {[%emt
00:02:35]} 18. Nd5 {[%clk 00:23:31]} {[%emt 00:01:43]} Bxd5 {[%clk 00:30:08]}
{[%emt 00:00:04]} 19. Qxd5 {[%clk 00:23:39]} {[%emt 00:00:02]} Nf6 {[%clk
00:28:28]} {[%emt 00:01:50]} 20. Bxf6 {[%clk 00:23:09]} {[%emt 00:00:40]} Bxf6
{[%clk 00:28:37]} {[%emt 00:00:01]} 21. Ne3 {[%clk 00:22:03]} {[%emt 00:01:17]}
Bg5 {[%clk 00:24:36]} {[%emt 00:04:12]} 22. Nc4 {[%clk 00:22:08]} {[%emt
00:00:04]} Rfd8 {[%clk 00:24:18]} {[%emt 00:00:28]} 23. Rad1 {[%clk 00:20:46]}
{[%emt 00:01:32]} Ne6 {[%clk 00:23:04]} {[%emt 00:01:24]} 24. g3 {[%clk
00:20:29]} {[%emt 00:00:27]} Be7 {[%clk 00:21:53]} {[%emt 00:01:22]} 25. h4
{[%clk 00:20:06]} {[%emt 00:00:33]} Rab8 {[%clk 00:20:38]} {[%emt 00:01:25]} 26.
Nb6 {[%clk 00:19:37]} {[%emt 00:00:39]} Qa7 {[%clk 00:20:32]} {[%emt 00:00:16]}
27. b4 {[%clk 00:18:05]} {[%emt 00:01:41]} Bf8 {[%clk 00:18:58]} {[%emt
00:01:44]} 28. Qc6 {[%clk 00:17:31]} {[%emt 00:00:44]} Kg7 {[%clk 00:17:36]}
{[%emt 00:01:32]} 29. Bc4 {[%clk 00:15:02]} {[%emt 00:02:39]} Nc7 {[%clk
00:14:32]} {[%emt 00:03:15]} 30. Nd7 {[%clk 00:14:34]} {[%emt 00:00:37]} Rbc8
{[%clk 00:14:08]} {[%emt 00:00:34]} 31. Nb6 {[%clk 00:10:32]} {[%emt 00:04:12]}
Rb8 {[%clk 00:14:17]} 32. g4 {[%clk 00:09:46]} {[%emt 00:00:56]} Ne6 {[%clk
00:12:37]} {[%emt 00:01:50]} 33. Qf3 {[%clk 00:09:21]} {[%emt 00:00:35]} Qe7
{[%clk 00:08:11]} {[%emt 00:04:37]} 34. g5 {[%clk 00:08:51]} {[%emt 00:00:40]}
Nc7 {[%clk 00:08:16]} {[%emt 00:00:04]} 35. Nd5 {[%clk 00:08:11]} {[%emt
00:00:50]} Nxd5 {[%clk 00:07:46]} {[%emt 00:00:40]} 36. Qxd5 {[%clk 00:08:18]}
{[%emt 00:00:02]} h6 {[%clk 00:06:27]} {[%emt 00:01:30]} 37. gxh6+ {[%clk
00:07:12]} {[%emt 00:01:17]} Kxh6 {[%clk 00:06:12]} {[%emt 00:00:25]} 38. Qxf7
{[%clk 00:06:51]} {[%emt 00:00:31]} Qxf7 {[%clk 00:05:33]} {[%emt 00:00:49]} 39.
Bxf7 {[%clk 00:06:59]} {[%emt 00:00:03]} Rdc8 {[%clk 00:05:01]} {[%emt
00:00:42]} 40. Re3 {[%clk 00:07:00]} {[%emt 00:00:10]} Rc7 {[%clk 00:04:23]}
{[%emt 00:00:48]} 41. Bd5 {[%clk 00:07:03]} {[%emt 00:00:06]} Be7 {[%clk
00:04:29]} {[%emt 00:00:04]} 42. Be4 {[%clk 00:05:36]} {[%emt 00:01:37]} Rbc8
{[%clk 00:04:15]} {[%emt 00:00:24]} 43. Rg3 {[%clk 00:05:16]} {[%emt 00:00:30]}
Rxc3 {[%clk 00:03:51]} {[%emt 00:00:35]} 44. Rxg6+ {[%clk 00:05:11]} {[%emt
00:00:15]} Kh5 {[%clk 00:03:59]} {[%emt 00:00:01]} 45. Rg7 {[%clk 00:04:51]}
{[%emt 00:00:30]} R8c7 {[%clk 00:02:53]} {[%emt 00:01:17]} 46. Kg2 {[%clk
00:03:24]} {[%emt 00:01:36]} R3c4 {[%clk 00:01:56]} {[%emt 00:01:07]} 47. f3
{[%clk 00:02:34]} {[%emt 00:01:01]} Kh6 {[%clk 00:00:32]} {[%emt 00:01:33]} 48.
Rh7# {[%emt 00:00:06]} 1-0

[Event "World Women Teams Championship"]
[Site "Sitges, Spain"]
[Date "2021.09.28"]
[Round "3.1"]
[White "Mammadzada, Gunay"]
[Black "Goryachkina, Aleksandra"]
[Result "0-1"]
[TimeControl "40+10"]
[WhiteElo "2280"]
[BlackElo "2520"]

1. e4 {[%clk 00:45:16]} {[%emt 00:00:02]} e5 {[%clk 00:45:12]} {[%emt
00:00:10]} 2. Nf3 {[%clk 00:45:24]} {[%emt 00:00:02]} Nc6 {[%clk 00:45:19]}
{[%emt 00:00:02]} 3. Bb5 {[%clk 00:45:28]} {[%emt 00:00:07]} Nf6 {[%clk
00:45:26]} {[%emt 00:00:03]} 4. O-O {[%clk 00:45:34]} {[%emt 00:00:04]} Nxe4
{[%clk 00:45:29]} {[%emt 00:00:06]} 5. Re1 {[%clk 00:45:42]} {[%emt 00:00:02]}
Nd6 {[%clk 00:45:33]} {[%emt 00:00:06]} 6. Nxe5 {[%clk 00:45:50]} {[%emt
00:00:02]} Be7 {[%clk 00:45:27]} {[%emt 00:00:17]} 7. Bf1 {[%clk 00:45:54]}
{[%emt 00:00:07]} Nf5 {[%clk 00:44:39]} {[%emt 00:00:57]} 8. Bd3 {[%clk
00:45:49]} {[%emt 00:00:15]} Nfd4 {[%clk 00:35:53]} {[%emt 00:08:57]} 9. Qh5
{[%clk 00:38:21]} {[%emt 00:07:38]} Nxe5 {[%clk 00:35:15]} {[%emt 00:00:47]} 10.
Rxe5 {[%clk 00:37:45]} {[%emt 00:00:46]} Ne6 {[%clk 00:34:23]} {[%emt
00:01:02]} 11. Nc3 {[%clk 00:31:13]} {[%emt 00:06:43]} d6 {[%clk 00:33:40]}
{[%emt 00:00:52]} 12. Re1 {[%clk 00:26:27]} {[%emt 00:04:56]} c6 {[%clk
00:31:40]} {[%emt 00:02:10]} 13. g3 {[%clk 00:23:16]} {[%emt 00:03:22]} g6
{[%clk 00:30:38]} {[%emt 00:01:12]} 14. Qh6 {[%clk 00:22:45]} {[%emt 00:00:41]}
Bg5 {[%clk 00:26:48]} {[%emt 00:03:59]} 15. Qg7 {[%clk 00:22:25]} {[%emt
00:00:30]} Qf6 {[%clk 00:26:10]} {[%emt 00:00:48]} 16. Qxf6 {[%clk 00:21:34]}
{[%emt 00:01:02]} Bxf6 {[%clk 00:26:18]} {[%emt 00:00:01]} 17. Ne4 {[%clk
00:17:06]} {[%emt 00:04:37]} Be7 {[%clk 00:26:14]} {[%emt 00:00:15]} 18. b4
{[%clk 00:16:30]} {[%emt 00:00:46]} d5 {[%clk 00:25:24]} {[%emt 00:01:00]} 19.
Nc5 {[%clk 00:16:34]} {[%emt 00:00:06]} Bf6 {[%clk 00:22:38]} {[%emt 00:02:56]}
20. Rb1 {[%clk 00:14:41]} {[%emt 00:02:04]} O-O {[%clk 00:22:36]} {[%emt
00:00:11]} 21. Nxe6 {[%clk 00:14:26]} {[%emt 00:00:25]} Bxe6 {[%clk 00:22:41]}
{[%emt 00:00:05]} 22. Bb2 {[%clk 00:13:26]} {[%emt 00:01:11]} Kg7 {[%clk
00:19:22]} {[%emt 00:03:29]} 23. Be5 {[%clk 00:12:06]} {[%emt 00:01:29]} Rfe8
{[%clk 00:18:38]} {[%emt 00:00:54]} 24. f3 {[%clk 00:11:34]} {[%emt 00:00:43]}
Bd7 {[%clk 00:15:06]} {[%emt 00:03:42]} 25. Bxf6+ {[%clk 00:11:31]} {[%emt
00:00:13]} Kxf6 {[%clk 00:15:14]} {[%emt 00:00:02]} 26. Kf2 {[%clk 00:11:37]}
{[%emt 00:00:03]} Rxe1 {[%clk 00:14:41]} {[%emt 00:00:43]} 27. Rxe1 {[%clk
00:11:45]} {[%emt 00:00:02]} a5 {[%clk 00:14:35]} {[%emt 00:00:16]} 28. a3
{[%clk 00:11:24]} {[%emt 00:00:31]} axb4 {[%clk 00:14:14]} {[%emt 00:00:31]} 29.
axb4 {[%clk 00:11:33]} {[%emt 00:00:01]} h5 {[%clk 00:14:05]} {[%emt 00:00:20]}
30. h4 {[%clk 00:10:21]} {[%emt 00:01:22]} b6 {[%clk 00:13:33]} {[%emt
00:00:41]} 31. Rb1 {[%clk 00:09:15]} {[%emt 00:01:16]} Ra2 {[%clk 00:12:08]}
{[%emt 00:01:34]} 32. Ke3 {[%clk 00:08:25]} {[%emt 00:01:01]} Ke5 {[%clk
00:11:20]} {[%emt 00:00:58]} 33. c3 {[%clk 00:06:54]} {[%emt 00:01:41]} Be6
{[%clk 00:09:11]} {[%emt 00:02:19]} 34. Bf1 {[%clk 00:06:26]} {[%emt 00:00:39]}
Ra3 {[%clk 00:08:22]} {[%emt 00:00:59]} 35. Bd3 {[%clk 00:06:12]} {[%emt
00:00:20]} d4+ {[%clk 00:05:35]} {[%emt 00:03:00]} 36. cxd4+ {[%clk 00:05:59]}
{[%emt 00:00:23]} Kd6 {[%clk 00:05:41]} {[%emt 00:00:04]} 37. Rc1 {[%clk
00:03:42]} {[%emt 00:02:28]} Rb3 {[%clk 00:05:47]} {[%emt 00:00:03]} 38. Rc3
{[%clk 00:02:42]} {[%emt 00:01:10]} Rxb4 {[%clk 00:05:39]} {[%emt 00:00:18]} 39.
Ra3 {[%clk 00:00:55]} {[%emt 00:01:56]} b5 {[%clk 00:05:04]} {[%emt 00:00:46]}
40. Ra6 {[%clk 00:00:43]} {[%emt 00:00:22]} Rb3 {[%clk 00:04:36]} {[%emt
00:00:38]} 41. Ke2 {[%clk 00:00:47]} {[%emt 00:00:06]} b4 {[%clk 00:03:57]}
{[%emt 00:00:49]} 42. Ra1 {[%clk 00:00:15]} {[%emt 00:00:42]} Ra3 {[%clk
00:03:29]} {[%emt 00:00:38]} 43. Rc1 {[%clk 00:00:13]} {[%emt 00:00:12]} b3
{[%clk 00:03:27]} {[%emt 00:00:12]} 44. Be4 {[%clk 00:00:21]} {[%emt 00:00:03]}
Ra6 {[%clk 00:03:23]} {[%emt 00:00:13]} 45. Rb1 {[%clk 00:00:21]} {[%emt
00:00:10]} Rb6 {[%clk 00:02:50]} {[%emt 00:00:43]} 46. Rb2 {[%clk 00:00:30]}
Bc4+ {[%clk 00:02:40]} {[%emt 00:00:20]} 47. Bd3 {[%clk 00:00:14]} {[%emt
00:00:27]} Kd5 {[%clk 00:02:20]} {[%emt 00:00:30]} 48. Ke3 {[%clk 00:00:23]} f5
{[%clk 00:02:11]} {[%emt 00:00:19]} 49. Bb1 {[%clk 00:00:14]} {[%emt 00:00:19]}
c5 {[%clk 00:01:56]} {[%emt 00:00:25]} 50. dxc5 {[%clk 00:00:12]} {[%emt
00:00:13]} Kxc5 {[%clk 00:02:04]} 51. d3 {[%clk 00:00:18]} {[%emt 00:00:04]}
Bd5 {[%clk 00:02:04]} {[%emt 00:00:10]} 52. d4+ {[%clk 00:00:14]} {[%emt
00:00:14]} Kb4 {[%clk 00:02:12]} {[%emt 00:00:02]} 53. Bd3 {[%clk 00:00:23]}
{[%emt 00:00:01]} Kc3 {[%clk 00:02:11]} {[%emt 00:00:11]} 0-1

[Event "World Women Teams Championship"]
[Site "Sitges, Spain"]
[Date "2021.09.28"]
[Round "3.2"]
[White "Kosteniuk, Alexandra"]
[Black "Mammadova, Gulnar"]
[Result "1-0"]
[TimeControl "40+10"]
[WhiteElo "2517"]
[BlackElo "2406"]

1. e4 {[%clk 00:45:17]} {[%emt 00:00:02]} e6 {[%clk 00:45:14]} {[%emt
00:00:06]} 2. d4 {[%clk 00:45:23]} {[%emt 00:00:05]} d5 {[%clk 00:45:22]}
{[%emt 00:00:02]} 3. e5 {[%clk 00:45:25]} {[%emt 00:00:08]} c5 {[%clk
00:45:22]} {[%emt 00:00:09]} 4. c3 {[%clk 00:45:31]} {[%emt 00:00:04]} Nc6
{[%clk 00:45:18]} {[%emt 00:00:14]} 5. Nf3 {[%clk 00:45:37]} {[%emt 00:00:05]}
Bd7 {[%clk 00:44:53]} {[%emt 00:00:35]} 6. Be2 {[%clk 00:45:21]} {[%emt
00:00:26]} Qb6 {[%clk 00:42:44]} {[%emt 00:02:20]} 7. O-O {[%clk 00:45:17]}
{[%emt 00:00:13]} f6 {[%clk 00:41:30]} {[%emt 00:01:25]} 8. dxc5 {[%clk
00:43:39]} {[%emt 00:01:47]} Bxc5 {[%clk 00:41:17]} {[%emt 00:00:22]} 9. b4
{[%clk 00:43:41]} {[%emt 00:00:08]} Be7 {[%clk 00:41:15]} {[%emt 00:00:12]} 10.
Bf4 {[%clk 00:42:13]} {[%emt 00:01:38]} fxe5 {[%clk 00:38:57]} {[%emt
00:02:29]} 11. Bxe5 {[%clk 00:41:40]} {[%emt 00:00:43]} Nf6 {[%clk 00:37:18]}
{[%emt 00:01:49]} 12. Nbd2 {[%clk 00:38:38]} {[%emt 00:03:12]} O-O {[%clk
00:36:41]} {[%emt 00:00:47]} 13. Bg3 {[%clk 00:36:39]} {[%emt 00:02:09]} a6
{[%clk 00:35:36]} {[%emt 00:01:15]} 14. Rb1 {[%clk 00:35:31]} {[%emt 00:01:18]}
Nh5 {[%clk 00:33:24]} {[%emt 00:02:22]} 15. c4 {[%clk 00:31:15]} {[%emt
00:04:26]} Nxg3 {[%clk 00:33:15]} {[%emt 00:00:18]} 16. hxg3 {[%clk 00:31:24]}
{[%emt 00:00:02]} Qc7 {[%clk 00:31:50]} {[%emt 00:01:35]} 17. a3 {[%clk
00:30:28]} {[%emt 00:01:06]} Be8 {[%clk 00:28:27]} {[%emt 00:03:32]} 18. Bd3
{[%clk 00:30:14]} {[%emt 00:00:24]} a5 {[%clk 00:26:36]} {[%emt 00:02:01]} 19.
Qc2 {[%clk 00:25:15]} {[%emt 00:05:09]} h6 {[%clk 00:25:47]} {[%emt 00:00:59]}
20. cxd5 {[%clk 00:25:18]} {[%emt 00:00:07]} axb4 {[%clk 00:24:47]} {[%emt
00:01:10]} 21. dxc6 {[%clk 00:25:22]} {[%emt 00:00:06]} Rxa3 {[%clk 00:24:51]}
{[%emt 00:00:05]} 22. cxb7 {[%clk 00:24:26]} {[%emt 00:01:07]} Qxb7 {[%clk
00:23:58]} {[%emt 00:01:03]} 23. Nc4 {[%clk 00:24:11]} {[%emt 00:00:25]} Ra7
{[%clk 00:22:43]} {[%emt 00:01:25]} 24. Nce5 {[%clk 00:24:16]} {[%emt
00:00:06]} Bf6 {[%clk 00:21:50]} {[%emt 00:01:02]} 25. Bh7+ {[%clk 00:22:46]}
{[%emt 00:01:40]} Kh8 {[%clk 00:21:58]} {[%emt 00:00:03]} 26. Ng6+ {[%clk
00:22:18]} {[%emt 00:00:37]} Bxg6 {[%clk 00:22:01]} {[%emt 00:00:07]} 27. Bxg6
{[%clk 00:22:26]} {[%emt 00:00:02]} Rb8 {[%clk 00:20:37]} {[%emt 00:01:34]} 28.
Qb3 {[%clk 00:22:17]} {[%emt 00:00:20]} Qb6 {[%clk 00:18:38]} {[%emt 00:02:10]}
29. Rfc1 {[%clk 00:21:02]} {[%emt 00:01:24]} Qd6 {[%clk 00:17:15]} {[%emt
00:01:33]} 30. Qc4 {[%clk 00:19:07]} {[%emt 00:02:05]} Rab7 {[%clk 00:15:21]}
{[%emt 00:02:04]} 31. Bc2 {[%clk 00:17:49]} {[%emt 00:01:28]} Qd5 {[%clk
00:10:07]} {[%emt 00:05:25]} 32. Qg4 {[%clk 00:17:48]} {[%emt 00:00:11]} Qd6
{[%clk 00:07:57]} {[%emt 00:02:19]} 33. Qg6 {[%clk 00:17:41]} {[%emt 00:00:18]}
Kg8 {[%clk 00:08:04]} {[%emt 00:00:03]} 34. Bb3 {[%clk 00:17:28]} {[%emt
00:00:23]} Kh8 {[%clk 00:07:10]} {[%emt 00:01:04]} 35. Rc4 {[%clk 00:17:06]}
{[%emt 00:00:31]} e5 {[%clk 00:05:51]} {[%emt 00:01:29]} 36. Rbc1 {[%clk
00:16:48]} {[%emt 00:00:29]} Rd7 {[%clk 00:05:45]} {[%emt 00:00:15]} 37. Rc6
{[%clk 00:15:56]} {[%emt 00:01:02]} Qe7 {[%clk 00:05:42]} {[%emt 00:00:13]} 38.
Bc2 {[%clk 00:15:36]} {[%emt 00:00:31]} 1-0

[Event "World Women Teams Championship"]
[Site "Sitges, Spain"]
[Date "2021.09.28"]
[Round "3.3"]
[White "Fataliyeva, Ulviyya"]
[Black "Shuvalova, Polina"]
[Result "1/2-1/2"]
[TimeControl "40+10"]
[WhiteElo "2310"]
[BlackElo "2383"]

1. d4 {[%clk 00:45:19]} d5 {[%clk 00:45:10]} {[%emt 00:00:10]} 2. c4 {[%clk
00:45:26]} {[%emt 00:00:03]} e6 {[%clk 00:45:18]} {[%emt 00:00:02]} 3. Nc3
{[%clk 00:45:35]} {[%emt 00:00:02]} c5 {[%clk 00:45:19]} {[%emt 00:00:09]} 4.
cxd5 {[%clk 00:44:30]} {[%emt 00:01:15]} exd5 {[%clk 00:45:25]} {[%emt
00:00:04]} 5. Nf3 {[%clk 00:44:39]} Nf6 {[%clk 00:45:27]} {[%emt 00:00:08]} 6.
Bg5 {[%clk 00:43:17]} {[%emt 00:01:31]} Be6 {[%clk 00:45:29]} {[%emt 00:00:08]}
7. g3 {[%clk 00:43:08]} {[%emt 00:00:19]} Nc6 {[%clk 00:45:08]} {[%emt
00:00:32]} 8. Bg2 {[%clk 00:42:54]} {[%emt 00:00:23]} h6 {[%clk 00:45:10]}
{[%emt 00:00:08]} 9. Bxf6 {[%clk 00:41:40]} {[%emt 00:01:24]} Qxf6 {[%clk
00:45:17]} {[%emt 00:00:03]} 10. O-O {[%clk 00:41:40]} {[%emt 00:00:09]} O-O-O
{[%clk 00:42:30]} {[%emt 00:02:58]} 11. Qa4 {[%clk 00:40:13]} {[%emt 00:01:38]}
Kb8 {[%clk 00:40:50]} {[%emt 00:01:50]} 12. e4 {[%clk 00:38:50]} {[%emt
00:01:33]} Nxd4 {[%clk 00:37:30]} {[%emt 00:03:29]} 13. Nxd4 {[%clk 00:38:24]}
{[%emt 00:00:36]} Qxd4 {[%clk 00:37:31]} {[%emt 00:00:09]} 14. Qc2 {[%clk
00:36:44]} {[%emt 00:01:50]} Qf6 {[%clk 00:35:17]} {[%emt 00:02:24]} 15. exd5
{[%clk 00:35:59]} {[%emt 00:00:56]} Bf5 {[%clk 00:35:16]} {[%emt 00:00:10]} 16.
Qa4 {[%clk 00:35:36]} {[%emt 00:00:32]} Qd4 {[%clk 00:34:09]} {[%emt 00:01:18]}
17. Qa5 {[%clk 00:34:03]} {[%emt 00:01:43]} b6 {[%clk 00:33:26]} {[%emt
00:00:54]} 18. Qa6 {[%clk 00:34:05]} {[%emt 00:00:08]} Bc8 {[%clk 00:31:46]}
{[%emt 00:01:49]} 19. Qe2 {[%clk 00:33:55]} {[%emt 00:00:19]} Bd6 {[%clk
00:31:05]} {[%emt 00:00:52]} 20. Qf3 {[%clk 00:33:03]} {[%emt 00:01:03]} Bg4
{[%clk 00:29:27]} {[%emt 00:01:48]} 21. Nb5 {[%clk 00:30:26]} {[%emt 00:02:46]}
Bxf3 {[%clk 00:27:25]} {[%emt 00:02:12]} 22. Nxd4 {[%clk 00:30:35]} {[%emt
00:00:02]} Bxd5 {[%clk 00:23:25]} {[%emt 00:04:10]} 23. Bxd5 {[%clk 00:30:42]}
{[%emt 00:00:02]} cxd4 {[%clk 00:23:32]} {[%emt 00:00:03]} 24. Rad1 {[%clk
00:26:44]} {[%emt 00:04:07]} Bxg3 {[%clk 00:21:57]} {[%emt 00:01:46]} 25. fxg3
{[%clk 00:26:52]} {[%emt 00:00:02]} Rxd5 {[%clk 00:22:05]} {[%emt 00:00:02]} 26.
Rxf7 {[%clk 00:27:00]} {[%emt 00:00:02]} Rc8 {[%clk 00:21:09]} {[%emt
00:01:06]} 27. Rd2 {[%clk 00:25:21]} {[%emt 00:01:49]} Rc7 {[%clk 00:18:00]}
{[%emt 00:03:19]} 28. Rf3 {[%clk 00:22:04]} {[%emt 00:03:26]} Rcd7 {[%clk
00:16:34]} {[%emt 00:01:37]} 29. Rfd3 {[%clk 00:22:09]} {[%emt 00:00:04]} Kc7
{[%clk 00:16:36]} {[%emt 00:00:09]} 30. Kf2 {[%clk 00:22:17]} {[%emt 00:00:02]}
Kc6 {[%clk 00:16:23]} {[%emt 00:00:23]} 31. Kf3 {[%clk 00:21:58]} {[%emt
00:00:27]} a5 {[%clk 00:16:22]} {[%emt 00:00:14]} 32. Ke4 {[%clk 00:21:14]}
{[%emt 00:00:53]} Re7+ {[%clk 00:16:27]} {[%emt 00:00:06]} 33. Kf3 {[%clk
00:20:42]} {[%emt 00:00:40]} Kc5 {[%clk 00:15:46]} {[%emt 00:00:53]} 34. Rc2+
{[%clk 00:20:45]} {[%emt 00:00:06]} Kb5 {[%clk 00:12:41]} {[%emt 00:03:16]} 35.
Rcd2 {[%clk 00:20:29]} {[%emt 00:00:25]} Kc4 {[%clk 00:11:16]} {[%emt
00:01:36]} 36. Rb3 {[%clk 00:16:57]} {[%emt 00:03:41]} Rd6 {[%emt 00:01:32]} 37.
Rc2+ {[%clk 00:14:46]} {[%emt 00:01:36]} Kd5 {[%clk 00:10:47]} {[%emt
00:00:03]} 38. Rb5+ {[%clk 00:14:54]} Ke6 {[%clk 00:10:55]} {[%emt 00:00:02]}
39. Re2+ {[%clk 00:15:02]} {[%emt 00:00:02]} Kd7 {[%clk 00:10:42]} {[%emt
00:00:24]} 40. Rxe7+ {[%clk 00:15:07]} {[%emt 00:00:04]} Kxe7 {[%emt 00:00:18]}
41. Ke2 {[%clk 00:14:55]} {[%emt 00:00:05]} Kd7 {[%clk 00:10:09]} {[%emt
00:00:52]} 42. Kd3 {[%clk 00:14:13]} {[%emt 00:00:51]} Kc6 {[%clk 00:10:17]}
{[%emt 00:00:03]} 43. Rf5 {[%clk 00:13:52]} {[%emt 00:00:28]} Rd7 {[%clk
00:09:43]} {[%emt 00:00:47]} 44. b3 {[%clk 00:10:53]} {[%emt 00:03:09]} Rd6
{[%clk 00:09:28]} {[%emt 00:00:25]} 45. a3 {[%clk 00:10:51]} {[%emt 00:00:11]}
Rd7 {[%clk 00:06:48]} {[%emt 00:02:51]} 46. Rf4 {[%clk 00:10:03]} {[%emt
00:00:58]} Kc5 {[%clk 00:06:50]} {[%emt 00:00:09]} 47. Rf5+ {[%clk 00:10:08]}
{[%emt 00:00:03]} Kc6 {[%clk 00:05:30]} {[%emt 00:01:31]} 48. Rf4 {[%clk
00:10:13]} {[%emt 00:00:04]} Kc5 {[%clk 00:05:18]} {[%emt 00:00:23]} 49. Rf5+
{[%clk 00:10:18]} {[%emt 00:00:04]} 1/2-1/2

[Event "World Women Teams Championship"]
[Site "Sitges, Spain"]
[Date "2021.09.28"]
[Round "3.4"]
[White "Kashlinskaya, Alina"]
[Black "Mamedjarova, Turkan"]
[Result "1-0"]
[TimeControl "40+10"]
[WhiteElo "2367"]
[BlackElo "2243"]

1. d4 {[%clk 00:45:17]} {[%emt 00:00:02]} Nf6 {[%clk 00:45:13]} {[%emt
00:00:07]} 2. c4 {[%clk 00:45:25]} {[%emt 00:00:03]} e6 {[%clk 00:45:21]}
{[%emt 00:00:01]} 3. Nf3 {[%clk 00:45:31]} {[%emt 00:00:04]} b6 {[%clk
00:45:25]} {[%emt 00:00:08]} 4. a3 {[%clk 00:45:36]} {[%emt 00:00:04]} Bb7
{[%clk 00:45:25]} {[%emt 00:00:09]} 5. Bf4 {[%clk 00:45:39]} {[%emt 00:00:07]}
d5 {[%clk 00:42:10]} {[%emt 00:03:26]} 6. cxd5 {[%clk 00:45:32]} {[%emt
00:00:16]} exd5 {[%clk 00:41:49]} {[%emt 00:00:31]} 7. Nc3 {[%clk 00:45:28]}
{[%emt 00:00:14]} Bd6 {[%clk 00:41:34]} {[%emt 00:00:25]} 8. Bxd6 {[%clk
00:43:33]} {[%emt 00:02:05]} Qxd6 {[%clk 00:38:52]} {[%emt 00:02:52]} 9. Rc1
{[%clk 00:43:30]} {[%emt 00:00:12]} c6 {[%clk 00:38:41]} {[%emt 00:00:22]} 10.
g3 {[%clk 00:43:06]} {[%emt 00:00:34]} Nbd7 {[%clk 00:38:21]} {[%emt 00:00:30]}
11. Bg2 {[%clk 00:43:08]} {[%emt 00:00:08]} O-O {[%clk 00:38:24]} {[%emt
00:00:07]} 12. O-O {[%emt 00:00:05]} Rfe8 {[%clk 00:37:09]} {[%emt 00:01:25]}
13. Qc2 {[%clk 00:37:40]} {[%emt 00:05:43]} h6 {[%clk 00:33:20]} {[%emt
00:03:59]} 14. Rfd1 {[%emt 00:01:38]} Rac8 {[%clk 00:31:11]} {[%emt 00:00:55]}
15. e3 {[%emt 00:05:06]} Qe7 {[%emt 00:04:05]} 16. Qb3 {[%emt 00:09:24]} Ng4
{[%emt 00:00:44]} 17. Re1 {[%emt 00:02:16]} Ngf6 {[%clk 00:19:05]} {[%emt
00:01:44]} 18. Nd2 {[%emt 00:09:05]} Nf8 {[%clk 00:14:34]} {[%emt 00:00:30]} 19.
Qa4 {[%clk 00:22:07]} {[%emt 00:00:41]} a6 {[%clk 00:14:22]} {[%emt 00:00:23]}
20. b4 {[%clk 00:21:40]} {[%emt 00:00:37]} Qd7 {[%emt 00:03:13]} 21. Nf3 {[%clk
00:19:37]} {[%emt 00:00:09]} Qd6 {[%emt 00:02:20]} 22. Qb3 {[%clk 00:16:31]}
{[%emt 00:01:56]} Rc7 {[%emt 00:03:35]} 23. Na4 {[%clk 00:14:38]} {[%emt
00:01:23]} N8d7 {[%emt 00:00:43]} 24. Ne5 {[%emt 00:02:25]} Nxe5 {[%clk
00:08:22]} {[%emt 00:00:49]} 25. dxe5 {[%clk 00:12:45]} {[%emt 00:00:02]} Qxe5
{[%clk 00:08:31]} {[%emt 00:00:02]} 26. Nxb6 {[%clk 00:12:47]} {[%emt
00:00:08]} Rce7 {[%emt 00:01:57]} 27. Na4 {[%emt 00:00:38]} h5 {[%emt
00:00:31]} 28. Red1 {[%clk 00:10:08]} {[%emt 00:00:30]} h4 {[%emt 00:00:19]} 29.
Rd4 {[%emt 00:02:00]} hxg3 {[%clk 00:06:24]} {[%emt 00:00:08]} 30. hxg3 {[%emt
00:00:12]} Qg5 {[%emt 00:01:40]} 31. Qd1 {[%emt 00:01:36]} Qe5 {[%emt
00:01:18]} 32. Nb2 {[%clk 00:08:09]} {[%emt 00:00:25]} Qd6 {[%emt 00:00:49]} 33.
Nc4 {[%emt 00:00:32]} Qd7 {[%clk 00:02:17]} {[%emt 00:00:58]} 34. Na5 {[%clk
00:08:00]} {[%emt 00:00:07]} Ba8 {[%emt 00:00:20]} 35. Rh4 {[%emt 00:00:32]}
Qd6 {[%emt 00:01:13]} 36. Qd4 {[%clk 00:05:53]} {[%emt 00:00:20]} Nd7 37. Qg4
{[%emt 00:01:33]} Nf6 {[%clk 00:01:30]} {[%emt 00:00:05]} 38. Qh3 {[%emt
00:00:28]} Kf8 {[%emt 00:00:18]} 39. Rh8+ {[%clk 00:06:01]} Ng8 {[%clk
00:01:14]} {[%emt 00:00:02]} 40. Qh7 {[%clk 00:06:09]} 1-0